bitfinex/quotes_SOLUSD_20251204
["timestamp","ask_amount","ask_price","bid_price","bid_amount"]
[1764811226489,25.75676045,146.02,145.98,1.99999999]
[1764811226684,10.47838352,146.01,146.0,1.99999999]
[1764811226882,7.74,146.01,146.0,1.99999999]
[1764811227616,7.74,146.01,145.99,1.99999999]
[1764811227803,8.41,146.01,145.99,1.99999999]
[1764811227975,18.88838352,146.01,145.99,1.99999999]
[1764811228182,7.74,146.01,146.0,1.99999999]
[1764811228790,10.47838352,146.02,146.0,1.99999999]
[1764811229081,7.74,146.01,146.0,8.84927829]
[1764811229406,6.84757185,146.04,146.01,1.99999999]
[1764811229407,17.99595537,146.04,146.01,1.99999999]
[1764811229584,7.74,146.03,146.02,1.99999999]
[1764811229781,10.47838352,146.04,146.02,1.99999999]
[1764811229982,17.32552768,146.05,146.03,1.99999999]
[1764811230298,18.88838352,146.04,145.99,1.99999999]
[1764811230497,10.47838352,146.0,145.99,1.99999999]
[1764811230681,10.47838352,146.0,145.95,17.81800467]
[1764811230682,18.21838352,146.0,145.98,1.99999999]
[1764811230876,11.14838352,145.99,145.98,1.99999999]
[1764811231411,16.308864,146.03,145.99,0.69]
[1764811231607,0.1,146.1,146.0,12.47838351]
[1764811231788,0.1,146.1,146.04,1.99999999]
[1764811231789,17.32500892,146.06,146.04,1.99999999]
[1764811231984,18.21838352,146.05,146.02,1.99999999]
[1764811232188,18.21838352,146.05,146.03,1.99999999]
[1764811232488,18.88838352,146.05,146.03,1.99999999]
[1764811232804,27.45724752,146.04,146.0,1.99999999]
[1764811232991,26.78724752,146.01,145.96,1.99999999]
[1764811233187,10.47838352,145.98,145.96,1.99999999]
[1764811233384,10.47838352,145.98,145.95,1.99999999]
[1764811233385,7.74,145.97,145.95,1.99999999]
[1764811233704,7.74,145.97,145.96,1.99999999]
[1764811234189,16.308864,146.01,145.98,1.99999999]
[1764811234389,10.47838352,145.99,145.98,1.99999999]
[1764811234699,10.47838352,145.99,145.96,1.99999999]
[1764811235004,11.14838352,145.99,145.98,1.99999999]
[1764811235610,11.14838352,145.99,145.96,1.99999999]
[1764811235983,6.85025345,145.98,145.96,1.99999999]
[1764811236197,7.74,145.97,145.96,1.99999999]
[1764811236392,34.30563152,146.02,145.98,1.99999999]
[1764811236592,34.30563152,146.02,145.97,0.69]
[1764811236593,7.74,146.01,146.0,1.99999999]
[1764811236786,18.88838352,146.01,145.99,1.99999999]
[1764811236982,7.74,146.01,146.0,1.99999999]
[1764811237499,18.88838352,146.01,145.99,1.99999999]
[1764811237695,18.21838352,146.0,145.98,1.99999999]
[1764811237999,7.51922779,146.01,145.99,1.99999999]
[1764811238207,7.74,146.0,145.99,1.99999999]
[1764811238386,18.21838352,146.0,145.99,1.99999999]
[1764811238587,18.88838352,146.0,145.96,1.99999999]
[1764811238823,10.47838352,145.98,145.97,1.99999999]
[1764811238985,10.47838352,145.98,145.95,1.99999999]
[1764811239314,7.74,145.97,145.96,1.99999999]
[1764811239818,10.47838352,145.98,145.97,1.99999999]
[1764811239986,17.32879518,145.98,145.95,1.99999999]
[1764811240191,7.74,145.97,145.95,1.99999999]
[1764811240591,7.74,145.97,145.96,1.99999999]
[1764811240789,7.74,145.97,145.95,1.99999999]
[1764811240995,18.21838352,145.97,145.96,1.99999999]
[1764811241394,18.21838352,145.97,145.93,0.68]
[1764811241395,18.21838352,145.97,145.95,1.99999999]
[1764811241602,16.308864,145.96,145.93,1.99999999]
[1764811241985,25.72955872,145.97,145.95,1.99999999]
[1764811242191,14.5911752,145.97,145.95,1.99999999]
[1764811242405,25.77955872,145.97,145.95,1.99999999]
[1764811242600,25.77955872,145.97,145.94,1.99999999]
[1764811242789,25.77955872,145.97,145.95,1.99999999]
[1764811242999,11.18838352,145.96,145.95,1.99999999]
[1764811243400,18.03957562,145.96,145.95,1.99999999]
[1764811243697,25.77957562,145.96,145.95,1.99999999]
[1764811244215,15.3011921,145.96,145.95,1.99999999]
[1764811245196,7.74,145.96,145.95,1.99999999]
[1764811245523,18.92838352,145.96,145.94,1.99999999]
[1764811245702,11.18838352,145.95,145.9,1.99999999]
[1764811245903,11.18838352,145.95,145.88,11.16838352]
[1764811245904,10.47838352,145.94,145.92,1.99999999]
[1764811246215,8.45,145.93,145.92,1.99999999]
[1764811246806,15.21656815,145.93,145.92,1.99999999]
[1764811247113,22.06916871,145.93,145.91,1.99999999]
[1764811247319,22.06916871,145.93,145.92,1.99999999]
[1764811247818,6.8522877,145.94,145.92,1.99999999]
[1764811248037,7.74,145.93,145.92,1.99999999]
[1764811248400,43.06355867,145.97,145.92,1.99999999]
[1764811248401,7.47656815,145.98,145.95,1.99999999]
[1764811248597,7.74,145.97,145.95,1.99999999]
[1764811249326,13.61588321,146.0,145.97,1.99999999]
[1764811249618,7.74,145.99,145.97,1.99999999]
[1764811250089,15.21656815,145.99,145.97,1.99999999]
[1764811251226,6.85025345,145.98,145.96,1.99999999]
[1764811251418,6.85025345,145.98,145.97,1.99999999]
[1764811252219,14.59025345,145.98,145.97,1.99999999]
[1764811252408,15.30025345,145.98,145.97,1.99999999]
[1764811252793,16.308864,146.0,145.98,1.99999999]
[1764811253030,24.048864,146.0,145.98,1.99999999]
[1764811253414,24.048864,146.0,145.97,7.5406468]
[1764811253415,7.74,146.0,145.99,1.99999999]
[1764811253727,14.58931506,146.0,145.99,1.99999999]
[1764811254049,6.76656815,146.03,146.01,1.99999999]
[1764811254225,7.74,146.02,146.01,1.99999999]
[1764811254714,8.45,146.02,146.01,1.99999999]
[1764811254921,15.21656815,146.02,146.01,1.99999999]
[1764811255530,72.38142989,146.07,146.02,1.99999999]
[1764811255531,23.96275502,146.06,146.02,1.99999999]
[1764811255728,6.76656815,146.04,146.02,1.99999999]
[1764811256032,6.76656815,146.03,146.02,1.99999999]
[1764811256411,6.76656815,146.03,145.97,6.76656815]
[1764811256412,7.47656815,146.03,146.01,1.99999999]
[1764811256614,14.50656815,146.02,146.01,1.99999999]
[1764811256829,15.21656815,146.02,146.01,1.99999999]
[1764811257125,8.45,146.02,146.01,1.99999999]
[1764811257426,7.74,146.02,146.01,1.99999999]
[1764811257720,14.3243761,146.04,146.01,1.99999999]
[1764811257926,7.74,146.02,146.01,1.99999999]
[1764811261004,22.06494508,146.02,146.0,1.99999999]
[1764811261207,22.06494508,146.02,146.01,1.99999999]
[1764811261549,16.308864,146.04,146.01,1.99999999]
[1764811261727,17.018864,146.07,146.04,1.99999999]
[1764811262034,15.21656815,146.06,146.04,1.99999999]
[1764811262340,16.308864,146.07,146.04,1.99999999]
[1764811262520,7.74,146.06,146.05,1.99999999]
[1764811263513,8.45,146.06,146.05,1.99999999]
[1764811263833,15.21656815,146.06,146.05,1.99999999]
[1764811264234,22.06306958,146.06,146.05,1.99999999]
[1764811265112,16.308864,146.04,146.0,1.99999999]
[1764811265314,14.50656815,146.03,146.0,1.99999999]
[1764811265519,15.21656815,146.03,146.02,1.99999999]
[1764811265927,15.21656815,146.03,146.01,1.99999999]
[1764811266238,14.58837693,146.02,146.01,1.99999999]
[1764811266813,6.84837693,146.02,146.01,1.99999999]
[1764811267128,14.58837693,146.02,146.01,1.99999999]
[1764811268938,22.06494508,146.02,146.01,1.99999999]
[1764811269148,21.35494508,146.02,146.01,1.99999999]
[1764811270312,21.35494508,146.02,145.97,7.54059484]
[1764811270313,22.06494508,146.02,146.0,1.99999999]
[1764811270526,7.47656815,146.01,146.0,1.99999999]
[1764811270736,6.76656815,146.01,146.0,1.99999999]
[1764811271045,14.58837693,146.02,146.0,1.99999999]
[1764811271230,21.35494508,146.02,146.0,1.99999999]
[1764811271420,7.47656815,146.01,146.0,1.99999999]
[1764811271621,7.47656815,146.01,145.98,1.99999999]
[1764811271823,31.70931926,146.02,145.98,1.99999999]
[1764811271824,6.76656815,145.99,145.98,1.99999999]
[1764811272156,14.50656815,145.99,145.98,1.99999999]
[1764811272335,21.35635238,145.99,145.98,1.99999999]
[1764811272740,7.74,145.99,145.98,1.99999999]
[1764811273030,22.01635238,145.99,145.98,1.99999999]
[1764811273846,21.35635238,145.99,145.98,1.99999999]
[1764811274318,17.11395013,145.99,145.98,1.99999999]
[1764811275245,7.74,145.99,145.98,1.99999999]
[1764811276236,14.58978423,145.99,145.98,1.99999999]
[1764811277930,2.5241659,146.03,146.01,1.99999999]
[1764811278137,3.1841659,146.04,146.02,1.99999999]
[1764811278337,7.74,146.03,146.02,1.99999999]
[1764811279352,6.84744076,146.04,146.02,1.99999999]
[1764811279526,6.8471556,146.05,146.04,1.99999999]
[1764811279726,14.5871556,146.05,146.04,1.99999999]
[1764811280340,6.8471556,146.05,146.04,1.99999999]
[1764811280550,17.7713215,146.05,146.04,1.99999999]
[1764811280752,17.1113215,146.05,146.04,1.99999999]
[1764811281959,17.7713215,146.05,146.04,1.99999999]
[1764811282344,17.1113215,146.05,146.04,1.99999999]
[1764811282652,17.7713215,146.05,146.04,1.99999999]
[1764811283452,17.1113215,146.05,146.04,1.99999999]
[1764811285429,14.5871556,146.05,146.04,1.99999999]
[1764811285761,10.2641659,146.05,146.04,1.99999999]
[1764811287791,17.77113611,146.05,146.03,1.99999999]
[1764811288061,15.24697021,146.05,146.04,1.99999999]
[1764811288853,15.24697021,146.05,146.03,1.99999999]
[1764811289164,7.74,146.05,146.04,1.99999999]
[1764811289337,17.11113611,146.05,146.04,1.99999999]
[1764811289740,14.58697021,146.05,146.04,1.99999999]
[1764811289941,17.11113611,146.05,146.04,1.99999999]
[1764811290366,17.77113611,146.05,146.04,1.99999999]
[1764811292180,16.308864,146.08,146.04,2.68999999]
[1764811292470,0.66,146.08,146.07,1.99999999]
[1764811292669,8.4,146.08,146.07,1.99999999]
[1764811292962,14.58598848,146.08,146.07,1.99999999]
[1764811293469,6.9448045,146.1,146.09,1.99999999]
[1764811293770,17.2089704,146.1,146.09,1.99999999]
[1764811294148,10.3641659,146.1,146.09,1.99999999]
[1764811294662,7.84,146.1,146.09,2.68999999]
[1764811294858,0.1,146.1,146.09,9.53509547]
[1764811295561,0.1,146.1,146.09,5.21416589]
[1764811296067,0.1,146.1,146.09,2.68999999]
[1764811296574,0.1,146.1,146.09,9.53509547]
[1764811296745,0.1,146.1,146.09,12.05926137]
[1764811297353,0.1,146.1,146.09,20.86920629]
[1764811297600,0.1,146.1,146.09,9.53509547]
[1764811297748,0.1,146.1,146.09,12.05926137]
[1764811297950,0.1,146.1,146.09,20.86920629]
[1764811298978,0.1,146.1,146.09,37.17807029]
[1764811299164,1e-08,146.1,146.09,47.27473389]
[1764811299476,1e-08,146.1,146.09,37.17807029]
[1764811299851,1e-08,146.1,146.09,47.27473389]
[1764811300765,1e-08,146.1,146.09,34.65390439]
[1764811300961,1e-08,146.1,146.09,47.27473389]
[1764811301888,0.1,146.18,146.17,1.99999999]
[1764811302095,0.1,146.18,146.17,2.68999999]
[1764811302378,0.1,146.18,146.17,1.99999999]
[1764811302585,6.9408811,146.18,146.17,1.99999999]
[1764811302754,10.155047,146.18,146.17,1.99999999]
[1764811303469,0.1,146.18,146.17,4.52416589]
[1764811303669,0.1,146.18,146.17,12.075515]
[1764811304888,0.1,146.18,146.17,20.88545992]
[1764811305463,0.1,146.18,146.17,18.36129402]
[1764811305657,0.1,146.18,146.17,20.88545992]
[1764811306364,0.1,146.25,146.24,1.99999999]
[1764811306566,0.1,146.25,146.24,4.52416589]
[1764811306778,0.1,146.25,146.24,5.21416589]
[1764811306980,0.1,146.25,146.24,12.05224028]
[1764811307814,0.1,146.25,146.24,20.8621852]
[1764811308100,0.1,146.25,146.24,12.05224028]
[1764811308399,0.1,146.25,146.24,9.52807438]
[1764811308600,0.1,146.25,146.24,13.45540702]
[1764811309368,0.1,146.25,146.24,38.57421594]
[1764811309867,0.1,146.25,146.24,5.92733263]
[1764811310070,0.82,146.25,146.24,1.99999999]
[1764811310282,11.58493947,146.25,146.24,1.99999999]
[1764811310485,11.58493947,146.25,146.23,1.99999999]
[1764811310486,18.08502356,146.25,146.23,1.99999999]
[1764811310788,11.14741673,146.24,146.19,1.99999999]
[1764811311008,7.72,146.23,146.21,1.99999999]
[1764811311178,8.44,146.23,146.2,1.99999999]
[1764811311495,0.72,146.22,146.2,1.99999999]
[1764811311798,0.72,146.22,146.21,1.99999999]
[1764811312188,11.14741673,146.22,146.21,1.99999999]
[1764811312574,17.98642644,146.22,146.21,1.99999999]
[1764811312979,35.08395071,146.22,146.2,1.99999999]
[1764811313186,11.14741673,146.21,146.19,1.99999999]
[1764811313384,10.42741673,146.2,146.17,1.99999999]
[1764811313693,16.308864,146.19,146.14,12.42741672]
[1764811313890,17.028864,146.21,146.18,1.99999999]
[1764811314129,16.308864,146.2,146.19,1.99999999]
[1764811314281,17.028864,146.2,146.18,1.99999999]
[1764811314482,0.72,146.19,146.18,1.99999999]
[1764811314792,7.56041316,146.19,146.18,1.99999999]
[1764811314964,17.98782989,146.19,146.18,1.99999999]
[1764811315169,7.56041316,146.19,146.18,1.99999999]
[1764811315370,25.70782989,146.19,146.18,1.99999999]
[1764811315872,25.70782989,146.19,146.15,1.99999999]
[1764811315873,42.80886279,146.19,146.15,1.99999999]
[1764811316075,0.72,146.18,146.16,1.99999999]
[1764811316277,0.72,146.18,146.15,1.99999999]
[1764811316592,0.72,146.18,146.07,17.11465909]
[1764811316593,0.72,146.18,146.14,1.99999999]
[1764811316789,0.72,146.18,146.16,1.99999999]
[1764811316790,16.308864,146.17,146.16,1.99999999]
[1764811317397,27.45628073,146.17,146.16,1.99999999]
[1764811317893,34.29762984,146.17,146.16,1.99999999]
[1764811318295,51.40100262,146.17,146.13,1.99999999]
[1764811318500,51.40100262,146.17,146.15,1.99999999]
[1764811318501,0.72,146.16,146.15,1.99999999]
[1764811319085,0.72,146.16,146.14,1.99999999]
[1764811319275,7.72,146.15,146.14,1.99999999]
[1764811319592,7.72,146.15,146.13,1.99999999]
[1764811319779,18.86741673,146.15,146.13,1.99999999]
[1764811320092,17.99017025,146.14,146.13,1.99999999]
[1764811320394,17.99017025,146.14,146.11,1.99999999]
[1764811320599,17.99017025,146.14,146.13,1.99999999]
[1764811320600,6.84275352,146.14,146.13,1.99999999]
[1764811320778,23.15161752,146.14,146.1,1.99999999]
[1764811320978,0.72,146.13,146.11,1.99999999]
[1764811321573,17.27110684,146.12,146.11,1.99999999]
[1764811321769,10.42741673,146.12,146.11,1.99999999]
[1764811322193,18.86741673,146.12,146.11,1.99999999]
[1764811323173,18.86741673,146.12,146.1,1.99999999]
[1764811323495,11.14741673,146.11,146.1,1.99999999]
[1764811323674,17.99157524,146.11,146.1,1.99999999]
[1764811327398,17.99157524,146.11,146.04,6.84735712]
[1764811327399,35.10197151,146.11,146.06,1.99999999]
[1764811327698,7.72,146.1,146.06,1.99999999]
[1764811327875,23.95455478,146.11,146.09,1.99999999]
[1764811328072,8.44,146.1,146.09,1.99999999]
[1764811328602,15.28462696,146.1,146.09,1.99999999]
[1764811328899,32.39619437,146.1,146.09,1.99999999]
[1764811329198,16.308864,146.06,146.01,0.2]
[1764811329506,10.42741673,146.02,146.01,0.2]
[1764811329997,7.72,146.06,146.02,6.84837693]
[1764811330383,7.72,146.06,146.03,0.69]
[1764811330777,7.72,146.06,146.03,7.53776107]
[1764811330973,7.72,146.06,146.04,0.69]
[1764811331378,7.72,146.06,146.01,0.2]
[1764811331379,11.14741673,146.05,146.01,0.2]
[1764811331720,10.42741673,146.02,146.01,0.2]
[1764811332003,18.14741673,146.02,146.01,0.2]
[1764811332975,24.99579366,146.02,146.01,0.2]
[1764811333177,25.67579366,146.02,146.01,0.2]
[1764811333681,41.98465766,146.02,146.01,0.2]
[1764811334305,10.42741673,145.96,145.93,0.69]
[1764811334610,18.14741673,145.96,145.93,0.69]
[1764811334813,40.27818326,146.02,145.93,7.54242758]
[1764811335014,6.84978567,145.99,145.93,16.3523725]
[1764811335203,10.42741673,145.97,145.94,0.69]
[1764811335606,10.42741673,145.98,145.94,0.69]
[1764811335910,7.72,145.97,145.94,0.69]
[1764811336311,18.14741673,145.97,145.94,0.69]
[1764811336484,10.42741673,145.96,145.94,0.69]
[1764811337419,10.42741673,145.96,145.92,6.85293863]
[1764811337620,10.42741673,145.96,145.94,0.69]
[1764811342124,24.99847435,145.97,145.94,0.69]
[1764811343525,7.72,145.97,145.94,7.54193262]
[1764811344025,7.72,145.97,145.95,0.69]
[1764811344730,18.14741673,145.98,145.95,0.69]
[1764811345329,7.72,145.98,145.95,0.69]
[1764811345621,7.72,145.98,145.96,6.8511921]
[1764811347314,7.72,145.98,145.92,0.72]
[1764811347315,11.11741673,145.97,145.92,0.72]
[1764811347511,10.42741673,145.95,145.9,0.72]
[1764811347712,18.14741673,145.94,145.9,0.72]
[1764811348231,18.83741673,145.94,145.9,0.72]
[1764811348625,18.83741673,145.94,145.9,7.57397768]
[1764811349512,7.72,145.94,145.91,0.72]
[1764811349706,7.72,145.95,145.91,11.14741673]
[1764811350233,7.72,145.95,145.92,0.72]
[1764811350638,7.72,145.95,145.92,7.57294143]
[1764811350811,7.72,145.95,145.87,16.308864]
[1764811350812,10.42741673,145.93,145.87,0.72]
[1764811351012,8.41,145.92,145.87,0.72]
[1764811351232,7.72,145.92,145.87,18.00269531]
[1764811351612,7.72,145.92,145.88,0.72]
[1764811352036,11.11741673,145.91,145.86,6.85574775]
[1764811352213,10.42741673,145.89,145.85,0.72]
[1764811352407,7.72,145.89,145.85,0.72]
[1764811352624,7.72,145.89,145.85,7.57604401]
[1764811353328,7.72,145.89,145.86,0.72]
[1764811353926,3.94951196,145.92,145.87,3.94951196]
[1764811354236,7.72,145.9,145.86,4.66951196]
[1764811354436,7.72,145.9,145.86,11.19364647]
[1764811354644,8.41,145.9,145.86,0.72]
[1764811354822,18.88364647,145.9,145.86,7.57563842]
[1764811355133,25.73783365,145.9,145.86,0.72]
[1764811355433,11.16364647,145.89,145.84,11.19364647]
[1764811355826,14.57418718,145.9,145.85,0.72]
[1764811356034,14.57418718,145.9,145.82,10.77883782]
[1764811356035,10.47364647,145.88,145.82,10.77883782]
[1764811356215,10.47364647,145.85,145.82,3.77883782]
[1764811356623,0.69,145.84,145.82,3.05883782]
[1764811356945,17.33037801,145.85,145.82,3.05883782]
[1764811357516,18.02037801,145.85,145.82,3.05883782]
[1764811357847,10.47364647,145.83,145.82,3.05883782]
[1764811358149,19.28359139,145.83,145.82,3.05883782]
[1764811358319,8.80994492,145.82,145.79,0.2]
[1764811358515,10.47364647,145.8,145.79,0.2]
[1764811358738,46.06610186,145.8,145.79,1e-08]
[1764811359036,53.12481242,145.8,145.79,1e-08]
[1764811359239,60.84481242,145.8,145.79,1e-08]
[1764811360443,42.65116595,145.8,145.79,1e-08]
[1764811360646,39.89751948,145.8,145.79,1e-08]
[1764811360849,16.308864,145.77,145.75,1e-08]
[1764811361141,18.19364647,145.76,145.75,1e-08]
[1764811361319,27.20359139,145.76,145.75,1e-08]
[1764811361522,16.308864,145.73,145.67,0.72]
[1764811361728,10.47364647,145.68,145.67,0.72]
[1764811362026,10.47364647,145.68,145.65,0.72]
[1764811362027,18.19364647,145.68,145.65,0.72]
[1764811362225,7.74,145.67,145.65,0.72]
[1764811362425,0.2,145.75,145.65,0.72]
[1764811362643,10.47364647,145.7,145.65,11.19364647]
[1764811362943,10.47364647,145.69,145.65,0.72]
[1764811363247,10.47364647,145.68,145.66,0.7]
[1764811363629,10.47364647,145.68,145.64,0.7]
[1764811363835,10.47364647,145.67,145.64,0.7]
[1764811364243,10.47364647,145.66,145.61,17.34120281]
[1764811364552,10.47364647,145.65,145.62,0.7]
[1764811364720,10.47364647,145.66,145.62,7.56696703]
[1764811365150,7.74,145.67,145.63,0.7]
[1764811365151,10.47364647,145.65,145.63,0.7]
[1764811365723,10.47364647,145.65,145.6,7.0680956]
[1764811365924,10.47364647,145.61,145.6,0.2]
[1764811366141,7.74,145.61,145.6,0.2]
[1764811366452,7.74,145.63,145.6,7.74808789]
[1764811366821,7.74,145.63,145.61,0.68]
[1764811367026,10.47364647,145.64,145.61,0.68]
[1764811367027,7.74,145.64,145.61,7.54758988]
[1764811367549,7.74,145.64,145.62,0.68]
[1764811367842,7.74,145.64,145.61,6.86758988]
[1764811367843,10.47364647,145.63,145.61,0.68]
[1764811369165,17.16207867,145.67,145.61,0.68]
[1764811369452,34.31651174,145.71,145.61,0.68]
[1764811369453,10.47364647,145.65,145.61,0.68]
[1764811369633,18.21364647,145.65,145.61,7.54763258]
[1764811370131,10.47364647,145.64,145.6,7.06802981]
[1764811370458,6.79417988,145.64,145.61,0.68]
[1764811370859,6.79417988,145.64,145.61,6.86748594]
[1764811371052,6.79417988,145.64,145.6,7.06805718]
[1764811371240,6.79417988,145.64,145.61,0.68]
[1764811371440,13.6604373,145.64,145.61,0.68]
[1764811371857,6.79417988,145.64,145.61,0.68]
[1764811372036,7.74,145.64,145.61,7.47417988]
[1764811372436,7.74,145.64,145.62,0.68]
[1764811373044,6.79417988,145.68,145.62,14.34127859]
[1764811373358,7.74,145.66,145.62,14.34127859]
[1764811373556,7.74,145.66,145.63,0.68]
[1764811374186,6.79417988,145.68,145.63,14.34067374]
[1764811374470,7.74,145.67,145.63,14.34067374]
[1764811374650,7.74,145.67,145.64,0.68]
[1764811374964,7.74,145.67,145.64,7.47417988]
[1764811375257,7.74,145.67,145.65,0.68]
[1764811376633,6.86211467,145.73,145.66,6.79417988]
[1764811376868,14.53417988,145.72,145.66,6.79417988]
[1764811377048,6.79417988,145.71,145.67,0.68]
[1764811377949,13.65629455,145.73,145.67,7.47417988]
[1764811378154,13.65629455,145.73,145.69,6.86388907]
[1764811378338,7.74,145.72,145.68,14.33840433]
[1764811378542,7.74,145.72,145.69,0.68]
[1764811379152,6.79417988,145.74,145.69,0.68]
[1764811379361,7.74,145.73,145.69,7.47417988]
[1764811379658,7.74,145.73,145.7,6.79417988]
[1764811379858,7.74,145.73,145.7,7.47417988]
[1764811380061,7.74,145.74,145.72,6.79417988]
[1764811380371,7.74,145.74,145.72,13.65624117]
[1764811380581,7.74,145.74,145.71,6.79417988]
[1764811380793,7.74,145.74,145.7,14.33749014]
[1764811381077,7.74,145.74,145.7,13.65749014]
[1764811381257,7.74,145.74,145.71,7.54292804]
[1764811381566,7.74,145.74,145.64,0.68]
[1764811381567,16.308864,145.71,145.64,0.68]
[1764811381770,16.308864,145.71,145.61,0.68]
[1764811381771,6.79417988,145.65,145.61,0.68]
[1764811381969,7.74,145.64,145.61,0.68]
[1764811382170,7.74,145.64,145.59,6.79417988]
[1764811382171,6.86671702,145.63,145.59,7.47417988]
[1764811382469,24.03350957,145.63,145.56,0.68]
[1764811382669,6.79417988,145.61,145.56,0.68]
[1764811382873,7.74,145.61,145.57,6.79417988]
[1764811383044,7.74,145.61,145.58,7.47417988]
[1764811383244,14.53417988,145.61,145.55,7.67417988]
[1764811383477,7.74,145.61,145.55,0.88]
[1764811383648,14.53417988,145.61,145.55,0.88]
[1764811384355,21.40184006,145.61,145.55,7.75043681]
[1764811384852,21.40184006,145.61,145.55,0.88]
[1764811385171,21.60184006,145.61,145.55,0.88]
[1764811385368,21.40184006,145.61,145.55,7.75033283]
[1764811386475,21.40184006,145.61,145.55,0.88]
[1764811386973,21.60184006,145.61,145.6,1e-08]
[1764811387174,22.67178498,145.61,145.6,1e-08]
[1764811387549,6.86766018,145.61,145.6,1e-08]
[1764811387751,37.71070406,145.61,145.6,1e-08]
[1764811388274,30.41178498,145.61,145.6,1e-08]
[1764811388575,30.41178498,145.61,145.55,0.2]
[1764811388576,16.308864,145.58,145.55,0.2]
[1764811388753,6.79417988,145.56,145.55,0.2]
[1764811389205,6.99417988,145.56,145.55,0.2]
[1764811389686,15.8041248,145.56,145.55,0.2]
[1764811389856,15.8041248,145.56,145.55,1e-08]
[1764811390257,15.8041248,145.56,145.51,0.2]
[1764811390258,16.308864,145.53,145.51,0.2]
[1764811390477,8.80994492,145.55,145.51,0.2]
[1764811390478,21.40608752,145.52,145.51,0.2]
[1764811390650,16.308864,145.48,145.45,3.30547128]
[1764811390851,6.79417988,145.46,145.45,3.30547128]
[1764811391466,16.308864,145.43,145.38,0.68]
[1764811391652,7.74,145.42,145.38,0.68]
[1764811391857,14.53417988,145.42,145.38,0.68]
[1764811392167,7.74,145.41,145.34,7.08021607]
[1764811392355,6.79417988,145.39,145.35,0.68]
[1764811392554,16.308864,145.43,145.36,6.79417988]
[1764811392778,6.79417988,145.41,145.35,0.68]
[1764811392948,7.74,145.42,145.36,6.79417988]
[1764811393153,6.79417988,145.41,145.35,7.47417988]
[1764811393353,6.79417988,145.41,145.35,14.35390763]
[1764811393578,6.79417988,145.41,145.36,0.72]
[1764811394155,6.79417988,145.4,145.36,0.72]
[1764811394356,6.87852524,145.38,145.35,0.72]
[1764811394664,24.048864,145.39,145.35,0.72]
[1764811394665,30.92700416,145.39,145.35,0.72]
[1764811394861,6.79417988,145.38,145.34,0.2]
[1764811395163,7.74,145.37,145.34,0.92]
[1764811395362,7.74,145.37,145.35,0.72]
[1764811396172,17.19029474,145.44,145.36,6.79417988]
[1764811396363,7.74,145.43,145.39,6.79417988]
[1764811396556,7.74,145.43,145.38,6.87849231]
[1764811396557,7.74,145.43,145.4,6.79417988]
[1764811396766,7.74,145.43,145.41,0.72]
[1764811396969,30.85726596,145.46,145.41,0.72]
[1764811396970,7.74,145.45,145.41,0.72]
[1764811398164,7.74,145.45,145.41,7.51417988]
[1764811398659,14.61557665,145.45,145.42,0.72]
[1764811399252,14.61557665,145.45,145.41,13.67125693]
[1764811399458,7.74,145.45,145.42,7.51417988]
[1764811399663,7.74,145.45,145.43,6.79417988]
[1764811399878,6.87471906,145.47,145.43,7.51417988]
[1764811400087,7.74,145.46,145.44,0.72]
[1764811400976,7.74,145.46,145.45,6.79417988]
[1764811401167,6.87285223,145.5,145.45,7.51417988]
[1764811401484,6.87197669,145.52,145.48,6.79417988]
[1764811401661,7.74,145.51,145.49,6.79417988]
[1764811401864,7.74,145.51,145.5,6.79417988]
[1764811402065,7.74,145.51,145.49,6.79417988]
[1764811402483,7.74,145.51,145.5,0.72]
[1764811403559,7.74,145.51,145.5,7.51417988]
[1764811404770,7.74,145.51,145.47,6.87419765]
[1764811404974,14.61252697,145.51,145.45,0.72]
[1764811405171,38.68765661,145.51,145.45,7.51417988]
[1764811406663,16.308864,145.48,145.42,0.72]
[1764811406862,14.53417988,145.47,145.42,7.51417988]
[1764811407291,7.74,145.47,145.43,0.72]
[1764811407968,23.18139097,145.51,145.46,6.79417988]
[1764811408274,6.87201435,145.52,145.48,6.79417988]
[1764811408483,7.74,145.5,145.48,6.79417988]